[Event "German-ch Blitz Women 2022"]
[Site "Magdeburg"]
[Date "2022.08.13"]
[Round "5.7"]
[White "Fock, Sana"]
[Black "Grabowski, Petra"]
[Result "1/2-1/2"]
[ECO "C10"]
[WhiteElo "1807"]
[BlackElo "1643"]
[Annotator "NA RC COMBH"]
[PlyCount "104"]
[EventDate "2022.08.10"]
[EventType "tourn"]
[EventCountry "GER"]
[SourceTitle "playchess.com"]
[Source "ChessBase"]
[SourceQuality "1"]
[TimeControl "180+2"]

1. e4 {[%emt 0:00:01]} e6 {[%emt 0:00:01]} 2. d4 {[%emt 0:00:01]} d5 {[%emt 0:00:01]} 3. Nd2 {[%emt 0:00:02]} dxe4 {[%emt 0:00:01]} 4. Nxe4 {[%emt 0:00:01]} Nd7 {[%emt 0:00:01]} 5. Nf3 {[%emt 0:00:04]} Ngf6 {[%emt 0:00:01]} 6. Bd3 {[%emt 0:00:02]} Nxe4 {[%emt 0:00:06]} 7. Bxe4 {[%emt 0:00:02]} c5 {[%emt 0:00:02]} 8. O-O {[%emt 0:00:10]} Nf6 {[%emt 0:00:07]} 9. Bd3 {[%emt 0:00:10]} cxd4 {[%emt 0:00:06]} 10. Nxd4 {[%emt 0:00:18]} Bc5 {[%emt 0:00:02]} 11. Nb3 {[%emt 0:00:03]} Bb6 {[%emt 0:00:02]} 12. Bg5 {[%emt 0:00:09]} O-O {[%emt 0:00:17]} 13. c3 {[%emt 0:00:12]} Bd7 {[%emt 0:00:05]} 14. Qc2 {[%emt 0:00:08]} h6 {[%emt 0:00:06]} 15. Bh4 {[%emt 0:00:03]} Bc6 {[%emt 0:00:05]} 16. Bxf6 {[%emt 0:00:16]} Qxf6 {[%emt 0:00:02]} 17. Be4 {[%emt 0:00:05]} Bxe4 {[%emt 0:00:05]} 18. Qxe4 {[%emt 0:00:02]} Qe7 {[%emt 0:00:10]} 19. Rad1 {[%emt 0:00:03]} Rad8 {[%emt 0:00:09]} 20. Nd4 {[%emt 0:00:05]} a6 {[%emt 0:00:19]} 21. Rfe1 {[%emt 0:00:12]} Rd7 {[%emt 0:00:22]} 22. Nf3 {[%emt 0:00:18]} Qc5 {[%emt 0:00:09]} 23. Qe2 {[%emt 0:00:08]} Rfd8 {[%emt 0:00:03]} 24. Nd4 {[%emt 0:00:07]} Qc7 {[%emt 0:00:20]} 25. Nxe6 {[%emt 0:00:45]} fxe6 {[%emt 0:00:16]} 26. Qxe6+ {[%emt 0:00:02]} Kh8 {[%emt 0:00:05]} 27. Rxd7 {[%emt 0:00:03]} Rxd7 {[%emt 0:00:08]} 28. Qe8+ {[%emt 0:00:09]} Kh7 {[%emt 0:00:00]} 29. Qe4+ {[%emt 0:00:01]} g6 {[%emt 0:00:10]} 30. h3 {[%emt 0:00:04]} Qc5 {[%emt 0:00:10]} 31. Rf1 {[%emt 0:00:07]} Qd5 {[%emt 0:00:05]} 32. Qe8 {[%emt 0:00:04]} Qd6 {[%emt 0:00:07]} 33. Qe2 {[%emt 0:00:04]} Re7 {[%emt 0:00:03]} 34. Qf3 {[%emt 0:00:01]} Qe6 {[%emt 0:00:04]} 35. g3 {[%emt 0:00:04]} Qxa2 {[%emt 0:00:04]} 36. Qf6 {[%emt 0:00:02]} Bd8 {[%emt 0:00:06]} 37. Rd1 {[%emt 0:00:02]} Qf7 {[%emt 0:00:03]} 38. Qxf7+ {[%emt 0:00:02]} Rxf7 {[%emt 0:00:01]} 39. Rxd8 {[%emt 0:00:01]} Re7 {[%emt 0:00:01]} 40. Rb8 {[%emt 0:00:02]} Kg7 {[%emt 0:00:01]} 41. Kg2 {[%emt 0:00:02]} Kf6 {[%emt 0:00:00]} 42. b4 {[%emt 0:00:00]} Ke6 {[%emt 0:00:00]} 43. Rh8 {[%emt 0:00:02]} h5 {[%emt 0:00:01]} 44. Rg8 {[%emt 0:00:01]} Kf6 {[%emt 0:00:01]} 45. Rf8+ {[%emt 0:00:01]} Ke6 {[%emt 0:00:02]} 46. Rf4 {[%emt 0:00:02]} Rc7 {[%emt 0:00:01]} 47. Re4+ {[%emt 0:00:01]} Kd5 {[%emt 0:00:02]} 48. Rd4+ {[%emt 0:00:01]} Ke5 {[%emt 0:00:01]} 49. Rd3 {[%emt 0:00:04]} Ke4 {[%emt 0:00:02]} 50. Re3+ {[%emt 0:00:01]} Kf5 {[%emt 0:00:01]} 51. Kf3 {[%emt 0:00:02]} b6 {[%emt 0:00:03]} 52. Kg2 {[%emt 0:00:03]} Rc4 {[%emt 0:00:01]} 1/2-1/2

[Event "German-ch Blitz Women 2022"]
[Site "Magdeburg"]
[Date "2022.08.13"]
[Round "5.8"]
[White "Schuster, Rebekka"]
[Black "Khrapko, Marharyta"]
[Result "0-1"]
[ECO "B32"]
[WhiteElo "1815"]
[BlackElo "2128"]
[Annotator "TA"]
[PlyCount "72"]
[EventDate "2022.08.10"]
[EventType "tourn"]
[EventCountry "GER"]
[SourceTitle "playchess.com"]
[Source "ChessBase"]
[SourceQuality "1"]
[TimeControl "180+2"]

{[%evp 12,72,-16,-27,-40,-39,-33,-111,-98,-101,-61,-97,-52,-59,-64,-73,-75,-138,-62,-81,-59,-363,-346,-393,-373,-385,-350,-332,-227,-227,-31,-34,-41,-30,-39,-102,-90,-87,0,-88,-35,-28,-60,-379,-379,-386,-374,-673,-390,-12835,-12835,-12835,-12835,-8131,-2618,-12823,-5927,-12841,-12841,-12842,-12840,-12844,-12843]} 1. e4 {[%emt 0:00:01]} c5 {[%emt 0:00:01]} 2. Nf3 {[%emt 0:00:01]} Nc6 {[%emt 0:00:01]} 3. d4 {[%emt 0:00:00]} cxd4 4. Nxd4 {[%emt 0:00:01]} e5 {[%emt 0:00:02]} 5. Nb3 {[%emt 0:00:01]} Nf6 {[%emt 0:00:02]} 6. Nc3 {[%emt 0:00:01]} Bb4 {[%emt 0:00:01]} 7. Qd3 {[%emt 0:00:28]} O-O {[%emt 0:00:25] B33: Sicilian: Pelikan and Sveshnikov Variations.} 8. Bg5 {[%emt 0:00:01]} h6 {[%emt 0:00:08] [#]} 9. Be3 $146 {[%emt 0:00:17]} (9. Bxf6 $15 Qxf6 10. a3 Bxc3+ 11. Qxc3) ({Predecessor:} 9. Bh4 Be7 10. Be2 Nb4 11. Qd2 d6 12. O-O Bg4 13. Bxg4 Nxg4 14. Bxe7 Qxe7 15. h3 {1-0 (38) Groselj,K-Faganel,K Kamnik 2012}) 9... Bxc3+ {[%emt 0:00:12] Black is better.} 10. bxc3 {[%emt 0:00:04]} b6 {[%emt 0:00:23]} 11. Be2 {[%emt 0:00:06]} a5 {[%emt 0:00:03]} 12. O-O {[%emt 0:00:05]} Ba6 {[%emt 0:00:02]} 13. c4 {[%emt 0:00:21]} Nb4 {[%emt 0:00:08]} 14. Qd6 {[%emt 0:00:28]} (14. Qc3 $142) 14... Nxe4 {[%emt 0:00:11]} (14... Nxc2 $17 15. Bxb6 Nxe4) 15. Qxe5 $15 {[%emt 0:00:05]} Re8 {[%emt 0:00:13]} 16. Qd4 {[%emt 0:00:09][%mdl 8192]} (16. Qb2 $1 $15) 16... Nxc2 $19 {[%emt 0:00:04]} 17. Qxb6 {[%emt 0:00:03]} Qxb6 {[%emt 0:00:07]} ({Don't go for} 17... Nxa1 $2 18. Qxd8 Raxd8 19. Rxa1 $19) 18. Bxb6 {[%emt 0:00:02]} Nxa1 {[%emt 0:00:01]} 19. Rxa1 {[%emt 0:00:01]} Nd6 {[%emt 0:00:07]} 20. Bf3 {[%emt 0:00:06]} Rab8 {[%emt 0:00:07]} ({Inferior is} 20... Bxc4 21. Bxa8 Rxa8 22. Bxa5 $15) (20... Bb7 $19 {And now ...Bxf3 would win.} 21. Bc7 Bxf3 22. Bxd6 Be2) 21. Bc7 $15 {[%emt 0:00:02] [#] This bishop pair is nice.} Nxc4 {[%emt 0:00:03] ...Rb5 is the strong threat.} 22. Bxb8 {[%emt 0:00:02]} Rxb8 {[%emt 0:00:00]} 23. Rd1 {[%emt 0:00:03]} (23. Be2 $1 $15) 23... Ne5 {[%emt 0:00:15]} 24. Be4 {[%emt 0:00:10]} Be2 {[%emt 0:00:48]} ({Better is} 24... Rb4 $17 25. Rd4 Nd3 $1) 25. Re1 {[%emt 0:00:08] [#]} (25. Rd5 $11 f6 26. f4) 25... Bd3 {[%emt 0:00:11]} (25... Bc4 $1 $17 26. f4 Ng4 27. Nxa5 Bxa2) 26. Bxd3 {[%emt 0:00:25]} Nxd3 {[%emt 0:00:01][%mdl 4096] Endgame KRN-KRN} 27. Re7 {[%emt 0:00:01][%mdl 8192] [#]} ({White should try} 27. Rd1 $15 Nb4 28. Nxa5) 27... a4 $1 $19 {[%emt 0:00:01]} 28. Nd2 {[%emt 0:00:09]} Rb2 {[%emt 0:00:04][%csl LRa2,LRd2]} 29. Re2 {[%emt 0:00:13]} (29. Nf1 a3 30. Re3) 29... Nf4 {[%emt 0:00:03]} 30. Kf1 {[%emt 0:00:06]} (30. Re8+ Kh7 31. Nf3) 30... Nxe2 {[%emt 0:00:02] Black is clearly winning.} 31. Kxe2 {[%emt 0:00:01]} Rxa2 {[%emt 0:00:01] KR-KN} 32. Kd3 {[%emt 0:00:01]} Kf8 {[%emt 0:00:02]} 33. f4 {[%emt 0:00:05]} Ke7 {[%emt 0:00:02]} 34. g4 {[%emt 0:00:01]} d5 {[%emt 0:00:00]} 35. h4 {[%emt 0:00:01]} Kd6 {[%emt 0:00:01]} 36. Nf3 {[%emt 0:00:04]} Ra3+ {[%emt 0:00:01] Weighted Error Value: White=1.27/Black=0.72} 0-1

[Event "German-ch Blitz Women 2022"]
[Site "Magdeburg"]
[Date "2022.08.13"]
[Round "5.9"]
[White "Zschischang, Marine"]
[Black "Daemering, Katrin"]
[Result "1-0"]
[ECO "A41"]
[WhiteElo "2083"]
[BlackElo "1965"]
[Annotator "RC"]
[PlyCount "84"]
[EventDate "2022.08.10"]
[EventType "tourn"]
[EventCountry "GER"]
[SourceTitle "playchess.com"]
[Source "ChessBase"]
[SourceQuality "1"]
[TimeControl "180+2"]

1. d4 {[%emt 0:00:00]} d6 {[%emt 0:00:00]} 2. e4 {[%emt 0:00:02]} g6 {[%emt 0:00:02]} 3. Be3 {[%emt 0:00:02]} Bg7 {[%emt 0:00:01]} 4. Qd2 {[%emt 0:00:01]} c5 {[%emt 0:00:02]} 5. c3 {[%emt 0:00:01]} cxd4 {[%emt 0:00:01]} 6. cxd4 {[%emt 0:00:01]} Nc6 {[%emt 0:00:04]} 7. Nc3 {[%emt 0:00:03]} a6 {[%emt 0:00:01]} 8. Be2 {[%emt 0:00:05]} Bd7 {[%emt 0:00:02]} 9. h4 {[%emt 0:00:03]} h5 {[%emt 0:00:02]} 10. Nh3 {[%emt 0:00:07]} Rc8 {[%emt 0:00:03]} 11. a3 {[%emt 0:00:09]} Nf6 {[%emt 0:00:03]} 12. b4 {[%emt 0:00:04]} b5 {[%emt 0:00:06]} 13. f3 {[%emt 0:00:09]} Qc7 {[%emt 0:00:17]} 14. Rc1 {[%emt 0:00:04]} Qb7 {[%emt 0:00:13]} 15. Ng5 {[%emt 0:00:05]} e6 {[%emt 0:00:09]} 16. O-O {[%emt 0:00:06]} Qb8 {[%emt 0:00:09]} 17. Bf2 {[%emt 0:00:06]} O-O {[%emt 0:00:10]} 18. d5 {[%emt 0:00:16]} Ne5 {[%emt 0:00:06]} 19. dxe6 {[%emt 0:00:11]} fxe6 {[%emt 0:00:13]} 20. Rfd1 {[%emt 0:00:02]} Rc6 {[%emt 0:00:16]} 21. Nb1 {[%emt 0:00:11]} Rfc8 {[%emt 0:00:01]} 22. Rxc6 {[%emt 0:00:04]} Rxc6 {[%emt 0:00:02]} 23. Bg3 {[%emt 0:00:05]} Nc4 {[%emt 0:00:15]} 24. Bxc4 {[%emt 0:00:03]} bxc4 {[%emt 0:00:02]} 25. Bxd6 {[%emt 0:00:15]} Qb6+ {[%emt 0:00:04]} 26. Bc5 {[%emt 0:00:04]} Rxc5 {[%emt 0:00:01]} 27. bxc5 {[%emt 0:00:01]} Qxc5+ {[%emt 0:00:01]} 28. Kh1 {[%emt 0:00:05]} c3 {[%emt 0:00:03]} 29. Qd6 {[%emt 0:00:06]} Qf2 {[%emt 0:00:05]} 30. Qf4 {[%emt 0:00:24]} c2 {[%emt 0:00:11]} 31. Rc1 {[%emt 0:00:02]} e5 {[%emt 0:00:01]} 32. Qxe5 {[%emt 0:00:17]} Qxh4+ {[%emt 0:00:07]} 33. Nh3 {[%emt 0:00:08]} Bxh3 {[%emt 0:00:03]} 34. gxh3 {[%emt 0:00:01]} Qxh3+ {[%emt 0:00:02]} 35. Qh2 {[%emt 0:00:01]} Qc8 {[%emt 0:00:05]} 36. Rxc2 {[%emt 0:00:04]} Qd7 {[%emt 0:00:01]} 37. Qg2 {[%emt 0:00:06]} Kh7 {[%emt 0:00:02]} 38. Rd2 {[%emt 0:00:04]} Qe7 {[%emt 0:00:03]} 39. a4 {[%emt 0:00:01]} Qb4 {[%emt 0:00:02]} 40. Nc3 {[%emt 0:00:06]} Qxa4 {[%emt 0:00:05]} 41. Ne2 {[%emt 0:00:01]} Qa1+ {[%emt 0:00:02]} 42. Kh2 {[%emt 0:00:02]} Qe5+ {[%emt 0:00:41]} 1-0

[Event "German-ch Blitz Women 2022"]
[Site "Magdeburg"]
[Date "2022.08.13"]
[Round "5.10"]
[White "Staerk, Elisa"]
[Black "Muetsch, Annmarie"]
[Result "0-1"]
[ECO "A10"]
[WhiteElo "1947"]
[BlackElo "2249"]
[Annotator "TA"]
[PlyCount "70"]
[EventDate "2022.08.10"]
[EventType "tourn"]
[EventCountry "GER"]
[SourceTitle "playchess.com"]
[Source "ChessBase"]
[SourceQuality "1"]
[TimeControl "180+2"]

{[%evp 9,70,18,51,37,39,27,78,0,93,0,0,-45,-42,-61,-28,-90,-36,-63,-33,-54,-44,-91,-72,-104,-54,-94,-81,-160,-134,-183,-191,-202,-191,-872,-871,-870,-852,-852,-837,-1080,-539,-518,-519,-1091,-1086,-1146,-1112,-1384,-1404,-1619,-1632,-29987,-1936,-29978,-29979,-29986,-29987,-29987,-29988,-29995,-29992,-29998,-29999]} 1. c4 {[%emt 0:00:01]} d6 {[%emt 0:00:01]} 2. Nc3 {[%emt 0:00:01]} e5 {[%emt 0:00:01]} 3. g3 {[%emt 0:00:01]} f5 {[%emt 0:00:03]} 4. Bg2 {[%emt 0:00:01]} Nf6 {[%emt 0:00:01]} 5. d4 {[%emt 0:00:02]} Nbd7 {[%emt 0:00:07][%cal Bb8d7,Bd7b6,Bb6c4][%mdl 32]} 6. Nh3 {[%emt 0:00:04] A21: English Opening: 1...e5 2 Nc3.} Be7 {[%emt 0:00:16]} 7. O-O {[%emt 0:00:03]} O-O {[%emt 0:00:04] [#]} (7... c6 $11) 8. b4 $146 {[%emt 0:00:08]} (8. Ng5 $16 {Threatens to win with Ne6.} Nb6 9. Qb3 exd4 10. c5+ d5 11. cxb6 dxc3 12. bxc7 Qxc7 13. Bxd5+ (13. bxc3 h6 $14) (13. Qxc3 Qxc3 14. bxc3 h6 $11) 13... Kh8 14. Nf7+ (14. bxc3 Nxd5 15. Qxd5 h6 $14) 14... Kg8 15. Ng5+ Kh8 16. Nf7+ (16. bxc3 Nxd5 17. Qxd5 h6 $14) 16... Kg8 17. Ng5+) ({Predecessor:} 8. Ng5 Nb6 9. c5 dxc5 10. dxe5 Ng4 11. Bd5+ Nxd5 12. Qxd5+ Kh8 13. Nf7+ Rxf7 14. Qxf7 Nxe5 {1-0 (69) Rezan,S (2257)-Ljubicic,F (2396) Pula 1999}) 8... Kh8 {[%emt 0:00:08]} (8... h6 $11) 9. Bb2 {[%emt 0:00:07]} (9. Ng5 $16 {Strongly threatening Ne6.} Nb6 10. c5) 9... Nb6 {[%emt 0:00:12]} 10. c5 {[%emt 0:00:14]} (10. Qb3 $5 {[%cal Rd4e5]}) 10... Nc4 {[%emt 0:00:04]} 11. Bc1 {[%emt 0:00:09]} e4 {[%emt 0:00:17]} 12. e3 {[%emt 0:00:14]} (12. Qb3 $11 d5 13. Nf4) 12... d5 {[%emt 0:00:07]} (12... a5 $17 13. Qb3 axb4 14. Qxb4 d5) 13. a4 {[%emt 0:00:15]} Be6 {[%emt 0:00:08]} 14. Nf4 {[%emt 0:00:05]} Bf7 {[%emt 0:00:04]} 15. h4 {[%emt 0:00:02]} (15. Nb1 $15 {is superior.}) 15... Ng4 {[%emt 0:00:09] White is now going downhill.} 16. b5 {[%emt 0:00:12]} c6 {[%emt 0:00:12]} (16... h6 $17 17. h5 Bg5 18. Ng6+ Bxg6 19. hxg6 Rf6) 17. bxc6 {[%emt 0:00:04]} bxc6 {[%emt 0:00:01]} 18. Re1 {[%emt 0:00:08]} ({Better is} 18. Nb1) 18... h6 {[%emt 0:00:14] Black is more active.} 19. h5 {[%emt 0:00:03]} (19. Nb1 $17 {was called for.}) 19... Qe8 $19 {[%emt 0:00:04]} 20. Bf1 {[%emt 0:00:05]} Bxh5 {[%emt 0:00:06]} 21. Nxh5 $2 {[%emt 0:00:14]} (21. Qc2) 21... Qxh5 {[%emt 0:00:02][%csl Gg4][%cal Rh5h2]} 22. Bg2 {[%emt 0:00:11]} Qh2+ {[%emt 0:00:12]} 23. Kf1 {[%emt 0:00:01]} g5 {[%emt 0:00:13][%cal Og4f2,Bg7g5,Bg5h4][%mdl 32]} 24. Rb1 {[%emt 0:00:26] [#]} Rab8 {[%emt 0:00:01]} (24... Nxf2 $142 $1 {[%mdl 512]} 25. Qe2 (25. Kxf2 f4) 25... Nd3) 25. Rxb8 {[%emt 0:00:01]} Rxb8 {[%emt 0:00:01]} 26. Qc2 {[%emt 0:00:10]} (26. Nxe4 $142 dxe4 27. Qe2) 26... h5 {[%emt 0:00:06] aiming for ...h4.} 27. Ne2 {[%emt 0:00:22]} h4 {[%emt 0:00:07]} 28. gxh4 {[%emt 0:00:03]} gxh4 {[%emt 0:00:14] ( -> ...h3)} 29. Ng1 {[%emt 0:00:02] Prevents h3.} Rg8 {[%emt 0:00:07][%cal Og4e5] ...Nge5! is the strong threat.} 30. f4 {[%emt 0:00:08] Prevents Nge5.} Nf6 {[%emt 0:00:16] Pair of Knights!} (30... Qg3 $142 31. a5 Nh2+ 32. Ke2 Qg4+ 33. Bf3 Nxf3 34. Qxc4 Nxe1+ 35. Kd2 dxc4 36. Ne2 {[#]} Qf3 $1 37. a6 Rg2 38. Kc3 Qxe2 39. Kb4 Qa2 40. Ba3 Nc2+ 41. Kc3 Qb3#) 31. Qf2 {[%emt 0:00:12]} Nh5 {[%emt 0:00:04][%cal Bf6h5,Bh5g3,Bg3h1][%mdl 32] Black mates.} 32. Rd1 {[%emt 0:00:06]} Ng3+ {[%emt 0:00:04]} 33. Ke1 {[%emt 0:00:01]} Nh1 {[%emt 0:00:04]} 34. Qe2 {[%emt 0:00:08]} Qxg1+ {[%emt 0:00:06]} 35. Bf1 {[%emt 0:00:02]} Qg3+ {[%emt 0:00:01] Weighted Error Value: White=1.22/Black=0.55} 0-1

[Event "German-ch Blitz Women 2022"]
[Site "Magdeburg"]
[Date "2022.08.13"]
[Round "5.11"]
[White "Melamed, Tatjana"]
[Black "Zhou, Lepu Coco"]
[Result "1-0"]
[ECO "B40"]
[WhiteElo "2380"]
[BlackElo "1986"]
[Annotator "TA"]
[PlyCount "61"]
[EventDate "2022.08.10"]
[EventType "tourn"]
[EventCountry "GER"]
[SourceTitle "playchess.com"]
[Source "ChessBase"]
[SourceQuality "1"]
[TimeControl "180+2"]

{[%evp 21,61,10,51,45,52,10,20,0,25,4,53,47,54,0,0,-16,37,9,4,-102,-79,-85,-91,-66,0,-4,0,0,7,7,15,-47,117,108,124,116,105,72,85,67,73,37]} 1. e4 {[%emt 0:00:01][%cal Be2e4,Be4e5][%mdl 32]} c5 {[%emt 0:00:01]} 2. Nf3 {[%emt 0:00:02]} e6 {[%emt 0:00:02]} 3. c3 {[%emt 0:00:02]} Nf6 {[%emt 0:00:03]} 4. e5 {[%emt 0:00:02]} Nd5 {[%emt 0:00:01]} 5. Bc4 {[%emt 0:00:00]} Nc6 {[%emt 0:00:06]} 6. O-O {[%emt 0:00:04]} Nb6 {[%emt 0:00:03]} 7. Bb3 {[%emt 0:00:01]} d5 {[%emt 0:00:04]} 8. exd6 {[%emt 0:00:03]} Bxd6 {[%emt 0:00:03]} 9. d4 {[%emt 0:00:01]} cxd4 {[%emt 0:00:05]} 10. cxd4 {[%emt 0:00:01]} O-O {[%emt 0:00:08]} 11. Nc3 {[%emt 0:00:01]} Nb4 {[%emt 0:00:24] 11...Ne7 gains popularity.} 12. Bg5 {[%emt 0:00:09] B22: Sicilian: 2 c3.} Be7 {[%emt 0:00:04]} 13. Bf4 {[%emt 0:00:10]} N4d5 {[%emt 0:00:06]} 14. Be5 {[%emt 0:00:02] [#] The position is equal.} Bf6 $146 {[%emt 0:00:10]} ({Predecessor:} 14... Bd7 15. Rc1 Bc6 16. Bc2 Rc8 17. Qd3 g6 18. Bb1 Nxc3 19. bxc3 Bd5 20. Rfe1 Nc4 {0-1 (36) Lehti,J (2233)-Sammalvuo,T (2477) Finland 2011}) 15. Ne4 {[%emt 0:00:07]} Bxe5 {[%emt 0:00:06]} (15... Be7 $11) 16. dxe5 $14 {[%emt 0:00:04]} Bd7 {[%emt 0:00:10]} 17. Nd6 {[%emt 0:00:08]} (17. Qc2 $14) 17... Bc6 $11 {[%emt 0:00:08]} 18. Bc2 {[%emt 0:00:02]} f6 {[%emt 0:00:13]} ({Black should play} 18... Nb4 $11 19. Bb1 Bd5) 19. Qd3 {[%emt 0:00:16][%csl Gc2][%cal Rd3h7] [#]} (19. Nd4 $5 {[%cal Rd4e6]} Qd7 20. Qd3 $11 (20. Nxc6 bxc6 21. Qd4 Rab8 $14)) 19... g6 {[%emt 0:00:05]} 20. Nd4 {[%emt 0:00:02]} (20. Qd4 $11 {keeps the balance.}) 20... fxe5 $17 {[%emt 0:00:11]} 21. Nxc6 {[%emt 0:00:14][%cal Bd4c6,Bc6a5,Ba5b7,Bb7d6][%mdl 32]} Qxd6 {[%emt 0:00:19]} 22. Na5 {[%emt 0:00:00]} Qc7 {[%emt 0:00:08]} (22... Qb4 $15 23. Qa3 Qxa3 24. bxa3 Rac8) 23. Bb3 $1 $11 {[%emt 0:00:05]} Rad8 {[%emt 0:00:08]} 24. Rac1 $36 {[%emt 0:00:04][%mdl 2048] White fights for an advantage.} Qf7 {[%emt 0:00:03]} 25. Qe4 {[%emt 0:00:08]} Qf4 {[%emt 0:00:39]} 26. Qe2 {[%emt 0:00:01]} (26. Rce1 $11) 26... Nd7 $2 {[%emt 0:00:16] [#] Pair of Knights!} (26... Qg5 $1 $15 {stays ahead.} 27. Nxb7 Nf4 28. Bxe6+ (28. Qf3 $2 e4 $19) 28... Nxe6 29. Nxd8 Nf4) 27. Nxb7 $16 {[%emt 0:00:08]} Rc8 {[%emt 0:00:03]} 28. Rxc8 {[%emt 0:00:04]} Rxc8 {[%emt 0:00:01]} 29. Nd6 {[%emt 0:00:02]} Rc1 {[%emt 0:00:03]} 30. g3 {[%emt 0:00:15]} Rxf1+ {[%emt 0:00:03]} 31. Qxf1 {[%emt 0:00:01] Weighted Error Value: White=0.23 (precise) /Black=0.31} (31. Kxf1 $5 {[%cal Rg3f4]} Qc1+ 32. Qd1 $14 (32. Kg2 Qc6 $14)) 1-0

[Event "German-ch Blitz Women 2022"]
[Site "Magdeburg"]
[Date "2022.08.13"]
[Round "5.12"]
[White "Schulze, Lara"]
[Black "Nikolaeva, Mariya A"]
[Result "1-0"]
[ECO "C47"]
[WhiteElo "2292"]
[BlackElo "1309"]
[Annotator "TA"]
[PlyCount "67"]
[EventDate "2022.08.10"]
[EventType "tourn"]
[EventCountry "GER"]
[SourceTitle "playchess.com"]
[Source "ChessBase"]
[SourceQuality "1"]
[TimeControl "180+2"]

{[%evp 14,66,38,16,64,40,50,28,21,21,24,24,23,16,15,18,24,20,19,2,18,16,17,11,16,16,51,34,35,33,49,25,24,9,7,5,8,10,15,15,162,160,203,207,160,171,269,166,402,400,375,363,504,473,29999]} 1. e4 {[%emt 0:00:01]} e5 {[%emt 0:00:01]} 2. Nf3 {[%emt 0:00:01]} Nc6 {[%emt 0:00:00]} 3. Nc3 {[%emt 0:00:01]} Nf6 {[%emt 0:00:01]} 4. d4 {[%emt 0:00:01]} exd4 {[%emt 0:00:02]} 5. Nxd4 {[%emt 0:00:02][%cal Bf3d4,Bd4e2,Be2f4][%mdl 32]} d6 {[%emt 0:00:06]} 6. g3 {[%emt 0:00:03]} Be7 {[%emt 0:00:02]} 7. Bg2 {[%emt 0:00:01]} O-O {[%emt 0:00:03]} 8. O-O {[%emt 0:00:01]} Bg4 {[%emt 0:00:07] C41: Philidor Defence.} (8... Nxd4 $11 {is superior.} 9. Qxd4 Re8) 9. Nde2 {[%emt 0:00:06]} Qd7 {[%emt 0:00:03]} 10. Be3 {[%emt 0:00:08] [#]} (10. f3 $5 {[%cal Rf3g4]} Bh3 11. Bxh3 Qxh3 12. Nf4 $14) 10... Bh3 $146 {[%emt 0:00:04] White has an edge.} ({Predecessor:} 10... Rfe8 11. b3 Bf8 12. Qd2 Bh3 13. Bxh3 Qxh3 14. Nf4 Qd7 15. f3 Ne5 16. Rad1 c6 {1-0 (53) Petersen,S (2242)-Fischer,D (2094) Berlin 2008}) 11. Nf4 {[%emt 0:00:05]} Bxg2 {[%emt 0:00:02]} 12. Kxg2 {[%emt 0:00:02]} Ne5 {[%emt 0:00:09]} 13. h3 {[%emt 0:00:10]} Nc4 {[%emt 0:00:02]} 14. Bc1 {[%emt 0:00:03]} Rfe8 {[%emt 0:00:08]} 15. b3 {[%emt 0:00:04]} Ne5 {[%emt 0:00:12]} 16. Bb2 {[%emt 0:00:01]} Ng6 {[%emt 0:00:01]} 17. Nxg6 {[%emt 0:00:08]} hxg6 {[%emt 0:00:05]} 18. Qd3 {[%emt 0:00:08]} Rad8 {[%emt 0:00:08]} 19. Rad1 {[%emt 0:00:03]} Qc6 {[%emt 0:00:07]} 20. Nd5 {[%emt 0:00:08]} Nxd5 {[%emt 0:00:34]} 21. exd5 {[%emt 0:00:02]} Qd7 {[%emt 0:00:02]} 22. h4 {[%emt 0:00:09][%cal Bh3h4,Bh4h5,Bh5h6][%mdl 32]} Bf6 {[%emt 0:00:02]} 23. Bxf6 {[%emt 0:00:04]} gxf6 {[%emt 0:00:01]} 24. h5 {[%emt 0:00:15]} Kg7 {[%emt 0:00:07]} 25. Rh1 {[%emt 0:00:07]} Rh8 {[%emt 0:00:03]} 26. Qf3 {[%emt 0:00:03][%cal Oh5h6] [#] aiming for h6+!} Rde8 {[%emt 0:00:25] This move loses the game for Black.} (26... Rxh5 $11 {and Black has nothing to worry.} 27. Rxh5 gxh5) 27. h6+ $1 $18 {[%emt 0:00:07]} Kh7 {[%emt 0:00:31]} 28. Qxf6 {[%emt 0:00:04][%csl Gh6][%cal Rf6g7]} Rhg8 {[%emt 0:00:02] Against Qg7+} 29. Rde1 {[%emt 0:00:09] Inhibits Qe7. 0x0.00144db56c6adp-1022s more active pieces.} a6 {[%emt 0:00:09]} (29... Qf5 $142 30. Qxf5 gxf5 31. Rxe8 Rxe8) 30. c4 {[%emt 0:00:09] Strongly threatening Rxe8.} b6 $2 {[%emt 0:00:35] [#]} (30... g5 31. Rxe8 Qxe8 32. Qf5+ Rg6) 31. Rxe8 {[%emt 0:00:11]} Qxe8 {[%emt 0:00:00]} 32. Rh4 {[%emt 0:00:02] Inhibits Qe4+.} c5 {[%emt 0:00:03]} 33. Rf4 {[%emt 0:00:03]} Kxh6 {[%emt 0:00:08]} (33... Qf8 $18 34. Qxf7+ Qxf7 35. Rxf7+ Kxh6) 34. Rh4# {[%emt 0:00:02] Weighted Error Value: White=0.10 (very precise) /Black=0.70} 1-0